[Event "Championnat du monde jeunes U10"]
[Date "2024.11.16"]
[White "Fattori Dittmar, Luca"]
[Black "Anand, Tsogtbileg"]
[WhiteElo "1766"]
[BlackElo "1974"]
[Round "2.18"]
[Result "0-1"]
[TimeControl "5400+30"]

1. e4 {[%clk 1:30:48]} 1... c5 {[%clk 1:30:31]} 2. Nf3 {[%clk 1:30:43]} 2... d6
{[%clk 1:30:31]} 3. d4 {[%clk 1:30:35]} 3... cxd4 {[%clk 1:29:30]} 4. Nxd4
{[%clk 1:29:37]} 4... Nf6 {[%clk 1:29:30]} 5. Nc3 {[%clk 1:29:48]} 5... a6
{[%clk 1:29:31]} 6. Be3 {[%clk 1:30:04]} 6... e5 {[%clk 1:29:01]} 7. Nb3 {[%clk
1:29:43]} 7... Be6 {[%clk 1:28:23]} 8. Be2 {[%clk 1:24:49]} 8... Be7 {[%clk
1:27:04]} 9. O-O {[%clk 1:24:14]} 9... Nbd7 {[%clk 1:24:33]} 10. f3 {[%clk
1:24:05]} 10... Rc8 {[%clk 1:23:14]} 11. Qd2 {[%clk 1:19:33]} 11... Nb6 {[%clk
1:19:48]} 12. Rad1 {[%clk 1:16:55]} 12... Nc4 {[%clk 1:18:58]} 13. Bxc4 {[%clk
1:17:00]} 13... Bxc4 {[%clk 1:19:11]} 14. Rf2 {[%clk 1:15:06]} 14... b5 {[%clk
1:16:30]} 15. Nd5 {[%clk 1:13:22]} 15... Nxd5 {[%clk 1:14:32]} 16. exd5 {[%clk
1:13:16]} 16... O-O {[%clk 1:14:32]} 17. Na5 {[%clk 1:12:54]} 17... Bxd5 {[%clk
1:14:03]} 18. Qxd5 {[%clk 1:12:25]} 18... Qxa5 {[%clk 1:14:23]} 19. Bd2 {[%clk
1:09:30]} 19... Qb6 {[%clk 1:14:10]} 20. Bb4 {[%clk 1:05:12]} 20... Rxc2 {[%clk
1:13:19]} 21. Rd2 {[%clk 1:04:48]} 21... Rc1+ {[%clk 1:12:18]} 22. Rd1 {[%clk
1:05:08]} 22... Rxd1+ {[%clk 1:12:16]} 23. Qxd1 {[%clk 1:05:30]} 23... a5 {[%clk
1:11:20]} 24. Bd2 {[%clk 1:05:30]} 24... d5 {[%clk 1:09:53]} 25. Qe1 {[%clk
1:05:41]} 25... Bc5 {[%clk 1:10:12]} 0-1

[Variant "Standard"]
[Site "Europe Echecs"]

[Event "Championnat du monde jeunes U10"]
[Date "2024.11.16"]
[White "Burba, Mikita"]
[Black "Akramov, Khasan"]
[WhiteElo "1528"]
[BlackElo "1835"]
[Round "2.33"]
[Result "1-0"]
[TimeControl "5400+30"]

1. e4 {[%clk 1:30:58]} 1... c5 {[%clk 1:30:57]} 2. Nf3 {[%clk 1:31:20]} 2... Nc6
{[%clk 1:31:24]} 3. d4 {[%clk 1:31:44]} 3... cxd4 {[%clk 1:31:51]} 4. Nxd4
{[%clk 1:32:06]} 4... g6 {[%clk 1:32:19]} 5. Nc3 {[%clk 1:32:26]} 5... Bg7
{[%clk 1:32:40]} 6. Be3 {[%clk 1:32:49]} 6... Nf6 {[%clk 1:33:03]} 7. Bc4 {[%clk
1:32:42]} 7... O-O {[%clk 1:33:28]} 8. Bb3 {[%clk 1:33:03]} 8... Re8 {[%clk
1:33:55]} 9. f3 {[%clk 1:32:49]} 9... e6 {[%clk 1:34:20]} 10. f4 {[%clk
1:33:12]} 10... d6 {[%clk 1:34:47]} 11. Ndb5 {[%clk 1:33:04]} 11... Re7 {[%clk
1:35:10]} 12. O-O {[%clk 1:18:46]} 12... Ne8 {[%clk 1:35:15]} 13. Nd4 {[%clk
1:12:25]} 13... Na5 {[%clk 1:31:19]} 14. Qf3 {[%clk 1:04:23]} 14... Nxb3 {[%clk
1:13:45]} 15. axb3 {[%clk 1:04:16]} 15... Nf6 {[%clk 0:58:57]} 16. h3 {[%clk
1:00:20]} 16... e5 {[%clk 0:51:28]} 17. fxe5 {[%clk 0:52:54]} 17... Rxe5 {[%clk
0:51:44]} 18. Bf4 {[%clk 0:48:01]} 18... Rh5 {[%clk 0:51:54]} 19. Qf2 {[%clk
0:28:57]} 19... Bxh3 {[%clk 0:33:14]} 20. gxh3 {[%clk 0:27:56]} 20... Rxh3
{[%clk 0:33:09]} 21. Bg5 {[%clk 0:27:27]} 21... Qd7 {[%clk 0:33:29]} 22. Nf5
{[%clk 0:18:51]} 22... Rh5 {[%clk 0:26:23]} 23. Bxf6 {[%clk 0:16:50]} 23... Bxf6
{[%clk 0:26:50]} 24. Ng3 {[%clk 0:13:28]} 24... Qg4 {[%clk 0:26:42]} 25. Ne2
{[%clk 0:12:19]} 25... Be5 {[%clk 0:20:53]} 26. Qxf7+ {[%clk 0:11:50]} 26... Kh8
{[%clk 0:21:19]} 27. Qf3 {[%clk 0:10:42]} 27... Qg5 {[%clk 0:17:42]} 28. Rxa7
{[%clk 0:07:17]} 28... Rg8 {[%clk 0:17:03]} 29. Rf2 {[%clk 0:04:33]} 29... Rh3
{[%clk 0:14:22]} 30. Rg2 {[%clk 0:03:59]} 30... Qh6 {[%clk 0:14:27]} 31. Rxb7
{[%clk 0:01:11]} 31... Ra8 {[%clk 0:11:35]} 32. Rf7 {[%clk 0:01:05]} 32... Bg7
{[%clk 0:10:47]} 33. Qf1 {[%clk 0:00:41]} 33... Qe3+ {[%clk 0:10:30]} 34. Qf2
{[%clk 0:00:45]} 34... Ra1+ {[%clk 0:09:16]} 35. Nf1 {[%clk 0:01:03]} 35... Qh6
{[%clk 0:09:00]} 36. Ng3 {[%clk 0:00:58]} 36... Rd1 {[%clk 0:09:14]} 37. Rxg7
{[%clk 0:00:35]} 37... Qxg7 {[%clk 0:09:32]} 38. Qb6 {[%clk 0:00:40]} 38... Qf6
{[%clk 0:09:40]} 39. Qb8+ {[%clk 0:01:01]} 39... Kg7 {[%clk 0:09:56]} 40. Qa7+
{[%clk 0:01:07]} 40... Kg8 {[%clk 0:09:26]} 41. Qa8+ {[%clk 0:01:26]} 41... Kf7
{[%clk 0:09:28]} 42. Qb7+ {[%clk 0:01:20]} 42... Ke8 {[%clk 0:07:42]} 43. Qc8+
{[%clk 0:01:43]} 43... Ke7 {[%clk 0:08:09]} 44. Qxh3 {[%clk 0:02:05]} 44... h5
{[%clk 0:08:28]} 45. Rf2 {[%clk 0:02:12]} 45... Qg5 {[%clk 0:08:43]} 46. Qg2
{[%clk 0:02:05]} 46... Qh4 {[%clk 0:08:42]} 47. Qf3 {[%clk 0:02:02]} 1-0

[Variant "Standard"]
[Site "Europe Echecs"]

[Event "Championnat du monde jeunes U10"]
[Date "2024.11.16"]
[White "Bulat, Mansur"]
[Black "Akramov, Khusan"]
[WhiteElo "1610"]
[BlackElo "1782"]
[Round "2.40"]
[Result "0-1"]
[TimeControl "5400+30"]

1. e4 {[%clk 1:30:41]} 1... c6 {[%clk 1:30:56]} 2. d4 {[%clk 1:30:43]} 2... d5
{[%clk 1:31:21]} 3. exd5 {[%clk 1:30:40]} 3... cxd5 {[%clk 1:31:45]} 4. c4
{[%clk 1:30:40]} 4... Nf6 {[%clk 1:32:09]} 5. Nc3 {[%clk 1:30:46]} 5... g6
{[%clk 1:32:34]} 6. c5 {[%clk 1:29:41]} 6... Bg7 {[%clk 1:32:59]} 7. Nf3 {[%clk
1:26:38]} 7... O-O {[%clk 1:33:20]} 8. Bd3 {[%clk 1:24:58]} 8... b6 {[%clk
1:30:12]} 9. b4 {[%clk 1:19:06]} 9... a5 {[%clk 1:26:34]} 10. Ba3 {[%clk
1:14:26]} 10... axb4 {[%clk 1:23:06]} 11. Bxb4 {[%clk 1:14:46]} 11... Nc6 {[%clk
1:22:01]} 12. a3 {[%clk 1:05:03]} 12... Bg4 {[%clk 1:20:12]} 13. Be2 {[%clk
0:58:18]} 13... bxc5 {[%clk 1:16:51]} 14. Bxc5 {[%clk 0:58:39]} 14... Ne4 {[%clk
1:11:26]} 15. Rc1 {[%clk 0:41:50]} 15... Qa5 {[%clk 1:10:49]} 16. Qd3 {[%clk
0:30:53]} 16... Nxc5 {[%clk 1:10:43]} 17. dxc5 {[%clk 0:31:16]} 17... Bf5 {[%clk
1:10:48]} 18. Qd2 {[%clk 0:30:32]} 18... d4 {[%clk 1:06:31]} 19. Nd5 {[%clk
0:25:10]} 19... d3 {[%clk 1:05:40]} 20. Bd1 {[%clk 0:24:00]} 20... Qxd2+ {[%clk
0:58:30]} 21. Nxd2 {[%clk 0:22:32]} 21... Rxa3 {[%clk 0:54:39]} 22. Ne3 {[%clk
0:19:08]} 22... Bc3 {[%clk 0:52:28]} 23. Nc4 {[%clk 0:17:49]} 23... Bxd2+ {[%clk
0:50:22]} 24. Nxd2 {[%clk 0:17:48]} 24... Nd4 {[%clk 0:48:32]} 25. g4 {[%clk
0:14:56]} 25... Be6 {[%clk 0:47:29]} 26. f3 {[%clk 0:14:03]} 26... f5 {[%clk
0:44:04]} 27. h3 {[%clk 0:11:58]} 27... fxg4 {[%clk 0:42:38]} 28. hxg4 {[%clk
0:11:37]} 28... Bd5 {[%clk 0:42:49]} 29. Rf1 {[%clk 0:09:30]} 29... Rf6 {[%clk
0:42:56]} 30. Nc4 {[%clk 0:08:52]} 30... Bxc4 {[%clk 0:42:14]} 31. Rxc4 {[%clk
0:09:16]} 31... Nc6 {[%clk 0:38:10]} 32. Re4 {[%clk 0:07:50]} 32... Rf8 {[%clk
0:32:22]} 33. Rf2 {[%clk 0:04:31]} 33... Rd8 {[%clk 0:30:38]} 34. Rd2 {[%clk
0:03:37]} 34... Rd5 {[%clk 0:27:36]} 35. Re3 {[%clk 0:02:38]} 35... Kf7 {[%clk
0:21:36]} 36. f4 {[%clk 0:02:38]} 36... Rd4 {[%clk 0:17:23]} 37. Bf3 {[%clk
0:02:33]} 37... Nb4 {[%clk 0:17:07]} 38. Re4 {[%clk 0:02:43]} 38... Nc2+ {[%clk
0:09:46]} 39. Kf2 {[%clk 0:03:06]} 39... Raa4 {[%clk 0:09:55]} 40. Rxd4 {[%clk
0:02:29]} 40... Rxd4 {[%clk 0:10:18]} 41. c6 {[%clk 0:02:52]} 41... Ke8 {[%clk
0:08:45]} 42. f5 {[%clk 0:01:53]} 42... g5 {[%clk 0:07:46]} 43. Kg3 {[%clk
0:01:27]} 43... Kd8 {[%clk 0:07:49]} 44. Bd1 {[%clk 0:01:25]} 44... Ne3 {[%clk
0:06:14]} 45. Kf2 {[%clk 0:01:10]} 45... Nc4 {[%clk 0:06:30]} 46. Ra2 {[%clk
0:01:36]} 46... Rf4+ {[%clk 0:05:22]} 47. Kg3 {[%clk 0:01:31]} 47... Kc7 {[%clk
0:03:50]} 48. Bf3 {[%clk 0:01:31]} 48... d2 {[%clk 0:03:18]} 49. Ra7+ {[%clk
0:01:44]} 49... Kb8 {[%clk 0:03:04]} 50. Rb7+ {[%clk 0:02:04]} 50... Kc8 {[%clk
0:03:28]} 51. Rb1 {[%clk 0:02:27]} 51... Ne3 {[%clk 0:03:45]} 52. Be2 {[%clk
0:02:41]} 52... Nd5 {[%clk 0:01:33]} 53. Rb3 {[%clk 0:00:59]} 53... Re4 {[%clk
0:01:39]} 54. Kf2 {[%clk 0:01:08]} 54... Nf4 {[%clk 0:01:17]} 55. Bf3 {[%clk
0:01:00]} 55... Re1 {[%clk 0:01:21]} 56. Re3 {[%clk 0:00:56]} 56... Nh3+ {[%clk
0:01:39]} 57. Kg2 {[%clk 0:01:01]} 57... Rxe3 {[%clk 0:02:05]} 58. f6 {[%clk
0:01:23]} 58... exf6 {[%clk 0:02:29]} 59. c7 {[%clk 0:01:43]} 59... Nf4+ {[%clk
0:02:53]} 60. Kf2 {[%clk 0:01:54]} 60... Rxf3+ {[%clk 0:03:19]} 61. Kxf3 {[%clk
0:02:19]} 61... d1=Q+ {[%clk 0:03:44]} 62. Kg3 {[%clk 0:02:34]} 62... Qd2 {[%clk
0:03:35]} 63. Kf3 {[%clk 0:02:58]} 63... Qe2+ {[%clk 0:04:02]} 64. Kg3 {[%clk
0:03:24]} 64... Qg2# {[%clk 0:04:28]} 0-1

[Variant "Standard"]
[Site "Europe Echecs"]

[Event "Championnat du monde jeunes U10"]
[Date "2024.11.16"]
[White "Ostapenko, Volodymyr"]
[Black "Gim, Hajin"]
[WhiteElo "1720"]
[BlackElo "1603"]
[Round "2.2"]
[Result "0-1"]
[TimeControl "5400+30"]

1. e4 {[%clk 1:30:55]} 1... c5 {[%clk 1:30:57]} 2. d4 {[%clk 1:31:17]} 2... cxd4
{[%clk 1:31:22]} 3. c3 {[%clk 1:31:44]} 3... Nf6 {[%clk 1:31:46]} 4. e5 {[%clk
1:31:45]} 4... Nd5 {[%clk 1:32:11]} 5. cxd4 {[%clk 1:31:56]} 5... d6 {[%clk
1:32:35]} 6. Nf3 {[%clk 1:29:32]} 6... Nc6 {[%clk 1:32:52]} 7. Bc4 {[%clk
1:28:31]} 7... Nb6 {[%clk 1:32:35]} 8. Bb3 {[%clk 1:27:53]} 8... dxe5 {[%clk
1:32:46]} 9. dxe5 {[%clk 1:27:36]} 9... Qxd1+ {[%clk 1:33:07]} 10. Bxd1 {[%clk
1:25:58]} 10... Bg4 {[%clk 1:33:03]} 11. O-O {[%clk 1:25:49]} 11... O-O-O {[%clk
1:32:36]} 12. Bf4 {[%clk 1:24:20]} 12... g6 {[%clk 1:30:09]} 13. Nbd2 {[%clk
1:19:41]} 13... Bg7 {[%clk 1:29:51]} 14. Rc1 {[%clk 1:19:16]} 14... Nd5 {[%clk
1:21:55]} 15. Bg3 {[%clk 1:17:05]} 15... Bh6 {[%clk 1:22:07]} 16. Ba4 {[%clk
1:08:28]} 16... Bxf3 {[%clk 1:22:08]} 17. Nxf3 {[%clk 1:06:39]} 17... Bxc1
{[%clk 1:22:03]} 18. Rxc1 {[%clk 1:07:06]} 18... Nc7 {[%clk 1:19:53]} 19. h3
{[%clk 1:07:08]} 19... Rd5 {[%clk 1:11:02]} 20. e6 {[%clk 1:03:51]} 20... Nxe6
{[%clk 1:10:27]} 21. Ne5 {[%clk 1:03:41]} 21... Nd4 {[%clk 1:08:28]} 22. Kf1
{[%clk 1:02:33]} 22... Ra5 {[%clk 1:05:31]} 23. b3 {[%clk 0:58:42]} 23... f6
{[%clk 1:03:38]} 24. Nd3 {[%clk 0:57:01]} 24... b5 {[%clk 1:03:27]} 25. Nb4
{[%clk 0:56:43]} 25... Kb7 {[%clk 1:03:22]} 26. Nd3 {[%clk 0:55:37]} 26... bxa4
{[%clk 1:03:41]} 27. Nc5+ {[%clk 0:55:56]} 27... Ka8 {[%clk 1:02:04]} 28. bxa4
{[%clk 0:53:59]} 28... e5 {[%clk 1:01:36]} 29. f3 {[%clk 0:54:04]} 29... Nb4
{[%clk 0:57:18]} 30. Be1 {[%clk 0:54:00]} 30... Ndc2 {[%clk 0:57:22]} 31. Rxc2
{[%clk 0:53:00]} 31... Nxc2 {[%clk 0:57:34]} 32. Bxa5 {[%clk 0:53:10]} 32... Rc8
{[%clk 0:57:38]} 33. Nd7 {[%clk 0:53:16]} 33... Rc6 {[%clk 0:56:54]} 34. Nf8
{[%clk 0:53:36]} 34... Rc8 {[%clk 0:54:56]} 35. Nxh7 {[%clk 0:53:39]} 35... Ne3+
{[%clk 0:55:18]} 36. Kf2 {[%clk 0:54:01]} 36... Nd5 {[%clk 0:55:29]} 37. f4
{[%clk 0:53:30]} 37... Rh8 {[%clk 0:55:27]} 38. Nxf6 {[%clk 0:53:39]} 38... Nxf6
{[%clk 0:55:20]} 39. fxe5 {[%clk 0:54:04]} 39... Rh5 {[%clk 0:54:43]} 40. Bc7
{[%clk 0:51:01]} 40... Rf5+ {[%clk 0:51:55]} 41. Ke2 {[%clk 0:50:45]} 41... Ne8
{[%clk 0:51:34]} 42. g4 {[%clk 0:50:36]} 42... Rg5 {[%clk 0:50:45]} 43. Bd8
{[%clk 0:47:51]} 43... Rxe5+ {[%clk 0:51:03]} 44. Kf3 {[%clk 0:48:12]} 44... g5
{[%clk 0:50:29]} 45. h4 {[%clk 0:47:38]} 45... gxh4 {[%clk 0:49:05]} 46. Bxh4
{[%clk 0:48:04]} 46... Kb7 {[%clk 0:49:15]} 47. Kf4 {[%clk 0:47:45]} 47... Ra5
{[%clk 0:49:29]} 48. a3 {[%clk 0:47:46]} 48... Kc6 {[%clk 0:49:10]} 49. Be7
{[%clk 0:48:03]} 49... Kd7 {[%clk 0:48:21]} 50. Bb4 {[%clk 0:48:22]} 50... Rd5
{[%clk 0:46:28]} 51. a5 {[%clk 0:46:49]} 51... a6 {[%clk 0:46:19]} 52. Ke3
{[%clk 0:46:24]} 52... Ke6 {[%clk 0:45:26]} 53. g5 {[%clk 0:46:35]} 53... Kf5
{[%clk 0:44:59]} 54. g6 {[%clk 0:46:58]} 54... Kxg6 {[%clk 0:45:17]} 55. Ke4
{[%clk 0:47:06]} 55... Nf6+ {[%clk 0:45:30]} 56. Ke3 {[%clk 0:47:21]} 56... Kf5
{[%clk 0:45:13]} 57. Bc3 {[%clk 0:47:14]} 57... Ng4+ {[%clk 0:45:23]} 58. Ke2
{[%clk 0:47:27]} 58... Ke4 {[%clk 0:45:23]} 59. Be1 {[%clk 0:46:32]} 59... Ne3
{[%clk 0:45:22]} 60. Bc3 {[%clk 0:46:33]} 60... Nc4 {[%clk 0:44:47]} 61. Ke1 0-1

[Variant "Standard"]
[Site "Europe Echecs"]

[Event "Championnat du monde jeunes U10"]
[Date "2024.11.16"]
[White "Veber, Tibor"]
[Black "Lenkov, Stanislav"]
[WhiteElo "1532"]
[BlackElo "1693"]
[Round "2.10"]
[Result "1/2-1/2"]
[TimeControl "5400+30"]

1. e4 {[%clk 1:30:58]} 1... c5 {[%clk 1:30:51]} 2. Nf3 {[%clk 1:31:20]} 2... e6
{[%clk 1:31:19]} 3. d4 {[%clk 1:31:13]} 3... cxd4 {[%clk 1:30:39]} 4. Nxd4
{[%clk 1:30:16]} 4... Nf6 {[%clk 1:30:36]} 5. Nc3 {[%clk 1:30:24]} 5... Nc6
{[%clk 1:30:08]} 6. Bg5 {[%clk 1:28:10]} 6... Be7 {[%clk 1:28:04]} 7. Be3 {[%clk
1:26:47]} 7... d5 {[%clk 1:27:02]} 8. exd5 {[%clk 1:26:54]} 8... Nxd5 {[%clk
1:25:58]} 9. Nxc6 {[%clk 1:25:46]} 9... bxc6 {[%clk 1:25:29]} 10. Nxd5 {[%clk
1:25:39]} 10... cxd5 {[%clk 1:24:41]} 11. Bb5+ {[%clk 1:25:24]} 11... Bd7 {[%clk
1:24:39]} 12. Bxd7+ {[%clk 1:25:38]} 12... Qxd7 {[%clk 1:24:57]} 13. O-O {[%clk
1:25:26]} 13... Bf6 {[%clk 1:24:45]} 14. c3 {[%clk 1:25:27]} 14... Rb8 {[%clk
1:23:56]} 15. Qc2 {[%clk 1:25:33]} 15... O-O {[%clk 1:24:08]} 16. Rfe1 {[%clk
1:25:24]} 16... Qc7 {[%clk 1:23:43]} 17. Rad1 {[%clk 1:22:51]} 17... Rfd8 {[%clk
1:20:47]} 18. Re2 {[%clk 1:21:26]} 18... Rdc8 {[%clk 1:16:46]} 19. Rc1 {[%clk
1:19:43]} 19... Qa5 {[%clk 1:12:04]} 20. Bf4 {[%clk 1:17:50]} 20... Rb7 {[%clk
1:08:33]} 21. a3 {[%clk 1:16:40]} 21... d4 {[%clk 1:02:18]} 22. c4 {[%clk
1:15:53]} 22... Rd8 {[%clk 1:00:43]} 23. Qd3 {[%clk 1:15:48]} 23... e5 {[%clk
0:59:39]} 24. Bg3 {[%clk 1:15:55]} 24... Re8 {[%clk 0:57:05]} 25. b4 {[%clk
1:15:55]} 25... Qc7 {[%clk 0:56:28]} 26. f4 {[%clk 1:14:09]} 26... Qd6 {[%clk
0:49:59]} 27. Rce1 {[%clk 1:11:38]} 27... Rbe7 {[%clk 0:48:56]} 28. fxe5 {[%clk
1:11:46]} 28... Bxe5 {[%clk 0:49:00]} 29. Bxe5 {[%clk 1:12:03]} 29... Rxe5
{[%clk 0:49:06]} 30. Rxe5 {[%clk 1:12:24]} 30... Rxe5 {[%clk 0:49:15]} 31. Rxe5
{[%clk 1:12:44]} 31... Qxe5 {[%clk 0:49:33]} 32. Kf2 {[%clk 1:13:03]} 32... Qf4+
{[%clk 0:48:58]} 33. Qf3 {[%clk 1:13:02]} 33... Qd2+ {[%clk 0:49:04]} 34. Qe2
{[%clk 1:12:57]} 34... Qf4+ {[%clk 0:49:18]} 35. Qf3 {[%clk 1:13:01]} 1/2-1/2

[Variant "Standard"]
[Site "Europe Echecs"]

[Event "Championnat du monde jeunes U10"]
[Date "2024.11.17"]
[White "Sameh Mohamed, Abdalrahman"]
[Black "Melkonyan, Davit"]
[WhiteElo "2238"]
[BlackElo "1842"]
[Round "3.1"]
[Result "1-0"]
[TimeControl "5400+30"]

1. d4 {[%clk 1:30:51]} 1... d5 {[%clk 1:30:54]} 2. e4 {[%clk 1:31:16]} 2... dxe4
{[%clk 1:31:14]} 3. Nc3 {[%clk 1:31:39]} 3... Nf6 {[%clk 1:31:36]} 4. f3 {[%clk
1:32:05]} 4... Bf5 {[%clk 1:31:58]} 5. Bg5 {[%clk 1:32:21]} 5... Nbd7 {[%clk
1:29:39]} 6. Bc4 {[%clk 1:32:39]} 6... h6 {[%clk 1:15:05]} 7. Bh4 {[%clk
1:33:05]} 7... e3 {[%clk 1:04:16]} 8. g4 {[%clk 1:32:05]} 8... Bg6 {[%clk
1:01:28]} 9. Qe2 {[%clk 1:31:44]} 9... e6 {[%clk 1:01:06]} 10. O-O-O {[%clk
1:31:48]} 10... Be7 {[%clk 1:00:50]} 11. Nh3 {[%clk 1:31:34]} 11... Nb6 {[%clk
0:59:16]} 12. Bb3 {[%clk 1:27:14]} 12... Nfd5 {[%clk 0:56:49]} 13. Nxd5 {[%clk
1:24:12]} 13... Nxd5 {[%clk 0:50:52]} 14. Bxe7 {[%clk 1:22:46]} 14... Nxe7
{[%clk 0:48:57]} 15. Qxe3 {[%clk 1:23:00]} 15... O-O {[%clk 0:43:19]} 16. Nf4
{[%clk 1:22:54]} 16... Qd6 {[%clk 0:41:35]} 17. h4 {[%clk 1:22:40]} 17... a5
{[%clk 0:40:07]} 18. a3 {[%clk 1:21:42]} 18... a4 {[%clk 0:39:30]} 19. Ba2
{[%clk 1:22:07]} 19... Bh7 {[%clk 0:38:51]} 20. Rhg1 {[%clk 1:20:50]} 20... Nd5
{[%clk 0:34:44]} 21. Bxd5 {[%clk 1:20:08]} 21... exd5 {[%clk 0:33:15]} 22. g5
{[%clk 1:20:34]} 22... Ra6 {[%clk 0:30:09]} 23. gxh6 {[%clk 1:17:20]} 23... Qxh6
{[%clk 0:30:31]} 24. Rg5 {[%clk 1:17:44]} 24... Rc6 {[%clk 0:26:59]} 25. c3
{[%clk 1:17:53]} 25... Kh8 {[%clk 0:24:53]} 26. Rdg1 {[%clk 1:18:01]} 26... Rg8
{[%clk 0:24:50]} 27. Rh5 {[%clk 1:12:12]} 27... Qf6 {[%clk 0:24:09]} 28. Nh3
{[%clk 1:12:28]} 28... Re6 {[%clk 0:22:23]} 29. Ng5 {[%clk 1:11:52]} 29... Rge8
{[%clk 0:22:09]} 30. Rxh7+ {[%clk 1:10:53]} 30... Kg8 {[%clk 0:22:10]} 31. Nxe6
{[%clk 1:10:58]} 31... Rxe6 {[%clk 0:22:12]} 32. Rgxg7+ {[%clk 1:11:22]} 32...
Kf8 {[%clk 0:22:16]} 33. Rxf7+ {[%clk 1:11:46]} 1-0

[Variant "Standard"]
[Site "Europe Echecs"]

[Event "Championnat du monde jeunes U10"]
[Date "2024.11.17"]
[White "Zabelin, Platon"]
[Black "Shogdzhiev, Roman"]
[WhiteElo "1870"]
[BlackElo "2202"]
[Round "3.2"]
[Result "0-1"]
[TimeControl "5400+30"]

1. d4 {[%clk 1:30:58]} 1... d5 {[%clk 1:30:59]} 2. c4 {[%clk 1:31:28]} 2... c6
{[%clk 1:31:24]} 3. cxd5 {[%clk 1:31:54]} 3... cxd5 {[%clk 1:31:52]} 4. Nc3
{[%clk 1:32:19]} 4... Nf6 {[%clk 1:32:19]} 5. Nf3 {[%clk 1:32:45]} 5... Nc6
{[%clk 1:32:45]} 6. Bf4 {[%clk 1:33:09]} 6... Bf5 {[%clk 1:33:10]} 7. e3 {[%clk
1:33:33]} 7... e6 {[%clk 1:33:40]} 8. Bb5 {[%clk 1:33:39]} 8... Nd7 {[%clk
1:33:44]} 9. O-O {[%clk 1:32:50]} 9... Be7 {[%clk 1:32:03]} 10. Rc1 {[%clk
1:31:08]} 10... Rc8 {[%clk 1:27:09]} 11. a3 {[%clk 1:27:32]} 11... a6 {[%clk
1:25:47]} 12. Bxc6 {[%clk 1:20:36]} 12... Rxc6 {[%clk 1:23:50]} 13. Ne5 {[%clk
1:16:17]} 13... Nxe5 {[%clk 1:23:26]} 14. Bxe5 {[%clk 1:16:39]} 14... O-O {[%clk
1:18:05]} 15. Qd2 {[%clk 1:13:36]} 15... Qa5 {[%clk 1:14:50]} 16. Ne4 {[%clk
1:08:53]} 16... Qxd2 {[%clk 1:13:05]} 17. Nxd2 {[%clk 1:09:17]} 17... Rfc8
{[%clk 1:11:34]} 18. Nb3 {[%clk 1:08:50]} 18... f6 {[%clk 1:11:15]} 19. Bg3
{[%clk 1:07:38]} 19... Rc2 {[%clk 1:09:25]} 20. Rfd1 {[%clk 1:06:46]} 20... R8c4
{[%clk 1:09:18]} 21. f3 {[%clk 0:53:44]} 21... Rxb2 {[%clk 1:05:24]} 22. e4
{[%clk 0:47:55]} 22... Rxb3 {[%clk 0:59:02]} 23. Rxc4 {[%clk 0:47:13]} 23...
dxc4 {[%clk 0:59:10]} 24. exf5 {[%clk 0:47:39]} 24... c3 {[%clk 0:54:43]} 25.
Bf4 {[%clk 0:47:40]} 25... Bxa3 {[%clk 0:54:31]} 26. fxe6 {[%clk 0:47:57]} 26...
c2 {[%clk 0:54:52]} 27. Rf1 {[%clk 0:48:24]} 27... Rb1 {[%clk 0:54:50]} 28. e7
{[%clk 0:48:46]} 28... Kf7 {[%clk 0:55:03]} 0-1

[Variant "Standard"]
[Site "Europe Echecs"]

[Event "Championnat du monde jeunes U10"]
[Date "2024.11.17"]
[White "Zuo, Junyu"]
[Black "Nguyen Truong An Khang"]
[WhiteElo "2120"]
[BlackElo "1836"]
[Round "3.3"]
[Result "0-1"]
[TimeControl "5400+30"]

1. e4 {[%clk 1:30:28]} 1... e5 {[%clk 1:30:52]} 2. Bc4 {[%clk 1:29:20]} 2... Nf6
{[%clk 1:31:16]} 3. d3 {[%clk 1:29:46]} 3... Nc6 {[%clk 1:31:40]} 4. Nf3 {[%clk
1:29:41]} 4... Bc5 {[%clk 1:32:03]} 5. c3 {[%clk 1:30:00]} 5... O-O {[%clk
1:32:30]} 6. O-O {[%clk 1:29:54]} 6... d5 {[%clk 1:32:56]} 7. exd5 {[%clk
1:29:09]} 7... Nxd5 {[%clk 1:33:14]} 8. Re1 {[%clk 1:27:57]} 8... Bg4 {[%clk
1:33:28]} 9. h3 {[%clk 1:26:23]} 9... Bh5 {[%clk 1:33:51]} 10. Nbd2 {[%clk
1:20:10]} 10... Nb6 {[%clk 1:32:53]} 11. Bb3 {[%clk 1:18:46]} 11... Qxd3 {[%clk
1:33:16]} 12. Nxe5 {[%clk 1:12:36]} 12... Qf5 {[%clk 1:33:39]} 13. Nef3 {[%clk
1:12:45]} 13... Rad8 {[%clk 1:34:04]} 14. Bc2 {[%clk 1:09:52]} 14... Qd7 {[%clk
1:22:27]} 15. Qe2 {[%clk 1:04:53]} 15... Nd5 {[%clk 1:12:21]} 16. Ne4 {[%clk
0:36:53]} 16... Be7 {[%clk 0:52:18]} 17. Ng3 {[%clk 0:25:58]} 17... Bg6 {[%clk
0:41:41]} 18. Bxg6 {[%clk 0:19:25]} 18... hxg6 {[%clk 0:36:27]} 19. Bg5 {[%clk
0:17:04]} 19... Rfe8 {[%clk 0:33:45]} 20. Qc4 {[%clk 0:15:38]} 20... Nf6 {[%clk
0:26:20]} 21. b4 {[%clk 0:12:03]} 21... Qd5 {[%clk 0:20:43]} 22. Qh4 {[%clk
0:10:45]} 22... b5 {[%clk 0:17:36]} 23. a4 {[%clk 0:06:41]} 23... a6 {[%clk
0:16:27]} 24. axb5 {[%clk 0:06:08]} 24... axb5 {[%clk 0:16:50]} 25. Ra6 {[%clk
0:06:09]} 25... Ra8 {[%clk 0:14:05]} 26. Rxa8 {[%clk 0:06:19]} 26... Rxa8 {[%clk
0:14:28]} 27. Nd4 {[%clk 0:02:42]} 27... Nxd4 {[%clk 0:11:45]} 28. Rxe7 {[%clk
0:02:53]} 28... Ra1+ {[%clk 0:11:37]} 29. Kh2 {[%clk 0:01:54]} 29... Nf3+ {[%clk
0:11:55]} 30. gxf3 {[%clk 0:02:19]} 30... Qd1 {[%clk 0:12:21]} 31. Ne2 {[%clk
0:00:55]} 31... Qh1+ {[%clk 0:12:50]} 32. Kg3 {[%clk 0:01:15]} 32... Nh5+ {[%clk
0:13:16]} 0-1

[Variant "Standard"]
[Site "Europe Echecs"]